[Event "Titled Tuesday Blitz May 2 Early 2023"]
[White "James, Stuart"]
[Black "Gheorghiu, Calin"]
[WhiteFideId "7400489"]
[BlackFideId "1200305"]
[WhiteElo "1950"]
[BlackElo "2223"]
[Result "0-1"]
[Round "03"]
[TimeControl "180+2"]
[Date "2023.05.02"]
[WhiteClock "0:01:38"]
[BlackClock "0:01:05"]

1. e4 {[%clk 0:03:00]}  c5 {[%clk 0:02:53]} 2. Nf3 {[%clk 0:03:00]}  d6 {[%clk 0:02:52]} 3. Bb5+ {[%clk 0:03:00]}  Nd7 {[%clk 0:02:50]} 4. O-O {[%clk 0:02:59]}  Nf6 {[%clk 0:02:49]} 5. Re1 {[%clk 0:02:58]}  a6 {[%clk 0:02:47]} 6. Bf1 {[%clk 0:02:58]}  e5 {[%clk 0:02:44]} 7. c3 {[%clk 0:02:57]}  Be7 {[%clk 0:02:43]} 8. d4 {[%clk 0:02:57]}  O-O {[%clk 0:02:43]} 9. h3 {[%clk 0:02:53]}  b5 {[%clk 0:02:30]} 10. a4 {[%clk 0:02:52]}  Bb7 {[%clk 0:02:23]} 11. Bd3 {[%clk 0:02:42]}  Re8 {[%clk 0:02:16]} 12. Qb3 {[%clk 0:02:38]}  exd4 {[%clk 0:01:46]} 13. axb5 {[%clk 0:02:33]}  axb5 {[%clk 0:01:42]} 14. Rxa8 {[%clk 0:02:25]}  Qxa8 {[%clk 0:01:40]} 15. cxd4 {[%clk 0:02:25]}  c4 {[%clk 0:01:39]} 16. Qxb5 {[%clk 0:02:21]}  cxd3 {[%clk 0:01:38]} 17. e5 {[%clk 0:02:19]}  Bc6 {[%clk 0:01:30]} 18. Qxd3 {[%clk 0:02:12]}  dxe5 {[%clk 0:01:29]} 19. dxe5 {[%clk 0:02:10]}  Nc5 {[%clk 0:01:28]} 20. Qc3 {[%clk 0:01:58]}  Nd5 {[%clk 0:01:24]} 21. Qc4 {[%clk 0:01:49]}  Nb6 {[%clk 0:01:16]} 22. Qg4 {[%clk 0:01:45]}  Bxf3 {[%clk 0:01:06]} 23. gxf3 {[%clk 0:01:44]}  Nd3 {[%clk 0:01:05]} 24. Bh6 {[%clk 0:01:43]}  Bf8 {[%clk 0:01:06]} 25. Rd1 {[%clk 0:01:38]}  Nxe5 {[%clk 0:01:05]} 0-1


[Site "https://www.chess.com"]

[Event "Titled Tuesday Blitz May 2 Early 2023"]
[White "Pandey Srishti"]
[Black "AKINSEYE, Akinleye"]
[WhiteFideId "35093290"]
[BlackFideId "8504458"]
[WhiteElo "2083"]
[BlackElo "1906"]
[Result "1-0"]
[Round "03"]
[TimeControl "180+2"]
[Date "2023.05.02"]
[WhiteClock "0:02:50"]
[BlackClock "0:00:14"]

1. e4 {[%clk 0:02:53]}  d5 {[%clk 0:00:09]} 2. exd5 {[%clk 0:02:54]}  Qxd5 {[%clk 0:00:09]} 3. Nc3 {[%clk 0:02:53]}  Qd8 {[%clk 0:00:09]} 4. Nf3 {[%clk 0:02:52]}  Nf6 {[%clk 0:00:10]} 5. d4 {[%clk 0:02:52]}  g6 {[%clk 0:00:11]} 6. Bc4 {[%clk 0:02:52]}  Bg7 {[%clk 0:00:12]} 7. O-O {[%clk 0:02:52]}  O-O {[%clk 0:00:12]} 8. h3 {[%clk 0:02:51]}  a6 {[%clk 0:00:13]} 9. a4 {[%clk 0:02:51]}  b6 {[%clk 0:00:13]} 10. Re1 {[%clk 0:02:50]}  Bb7 {[%clk 0:00:14]} 11. Ne5 {[%clk 0:02:50]}  Nbd7 {[%clk 0:00:14]} 12. Bf4 {[%clk 0:02:50]}  e6 {[%clk 0:00:14]} 1-0


[Site "https://www.chess.com"]

[Event "Titled Tuesday Blitz May 2 Early 2023"]
[White "Smith, Shreyas"]
[Black "Tsyhanchuk, Stanislav"]
[WhiteFideId "7400713"]
[BlackFideId "13505130"]
[WhiteElo "2151"]
[BlackElo "2173"]
[Result "0-1"]
[Round "03"]
[TimeControl "180+2"]
[Date "2023.05.02"]
[WhiteClock "0:00:01"]
[BlackClock "0:00:21"]

1. e4 {[%clk 0:03:00]}  c5 {[%clk 0:03:00]} 2. Nf3 {[%clk 0:03:00]}  d6 {[%clk 0:02:59]} 3. Bb5+ {[%clk 0:03:00]}  Nd7 {[%clk 0:02:59]} 4. a4 {[%clk 0:02:59]}  e5 {[%clk 0:02:53]} 5. O-O {[%clk 0:02:56]}  g6 {[%clk 0:02:53]} 6. Nc3 {[%clk 0:02:55]}  Bg7 {[%clk 0:02:52]} 7. d3 {[%clk 0:02:50]}  h6 {[%clk 0:02:52]} 8. a5 {[%clk 0:02:46]}  a6 {[%clk 0:02:49]} 9. Bc4 {[%clk 0:02:45]}  Ngf6 {[%clk 0:02:49]} 10. Re1 {[%clk 0:02:23]}  O-O {[%clk 0:02:48]} 11. Nd2 {[%clk 0:02:23]}  b5 {[%clk 0:02:46]} 12. axb6 {[%clk 0:02:22]}  Nxb6 {[%clk 0:02:46]} 13. Nf1 {[%clk 0:02:17]}  d5 {[%clk 0:02:24]} 14. exd5 {[%clk 0:02:13]}  Nfxd5 {[%clk 0:02:25]} 15. Nxd5 {[%clk 0:02:10]}  Nxd5 {[%clk 0:02:26]} 16. Ne3 {[%clk 0:02:05]}  Bb7 {[%clk 0:02:23]} 17. Nxd5 {[%clk 0:01:28]}  Bxd5 {[%clk 0:02:24]} 18. Bxd5 {[%clk 0:01:26]}  Qxd5 {[%clk 0:02:25]} 19. Ra5 {[%clk 0:01:25]}  Qd6 {[%clk 0:01:54]} 20. Be3 {[%clk 0:01:21]}  Rfc8 {[%clk 0:01:54]} 21. Qf3 {[%clk 0:01:17]}  f5 {[%clk 0:01:49]} 22. Rxc5 {[%clk 0:01:06]}  f4 {[%clk 0:01:09]} 23. Rd5 {[%clk 0:00:43]}  Qb4 {[%clk 0:00:50]} 24. c3 {[%clk 0:00:35]}  Qxb2 {[%clk 0:00:48]} 25. Bc1 {[%clk 0:00:17]}  Qxc3 {[%clk 0:00:48]} 26. Qd1 {[%clk 0:00:08]}  Kh7 {[%clk 0:00:44]} 27. Rd7 {[%clk 0:00:08]}  Qc6 {[%clk 0:00:41]} 28. Re7 {[%clk 0:00:07]}  Rd8 {[%clk 0:00:41]} 29. h3 {[%clk 0:00:06]}  Rd5 {[%clk 0:00:35]} 30. Bb2 {[%clk 0:00:06]}  Re8 {[%clk 0:00:30]} 31. Rxe8 {[%clk 0:00:03]}  Qxe8 {[%clk 0:00:30]} 32. Qb3 {[%clk 0:00:03]}  Qd7 {[%clk 0:00:28]} 33. d4 {[%clk 0:00:02]}  exd4 {[%clk 0:00:26]} 34. Qd3 {[%clk 0:00:03]}  Qb5 {[%clk 0:00:23]} 35. Qe4 {[%clk 0:00:02]}  Re5 {[%clk 0:00:21]} 36. Qb1 {[%clk 0:00:01]}  Rxe1+ {[%clk 0:00:20]} 37. Qxe1 {[%clk 0:00:01]}  Qxb2 {[%clk 0:00:21]} 38. Qe7 {[%clk 0:00:01]}  d3 {[%clk 0:00:21]} 39. Kh2 {[%clk 0:00:01]}  d2 {[%clk 0:00:21]} 0-1


[Site "https://www.chess.com"]

[Event "Titled Tuesday Blitz May 2 Early 2023"]
[White "Vasques, Antonio Pedro Freixial"]
[Black "Vargas, Mauricio"]
[WhiteFideId "1908332"]
[BlackFideId "4404572"]
[WhiteElo "2212"]
[BlackElo "1998"]
[Result "1-0"]
[Round "03"]
[TimeControl "180+2"]
[Date "2023.05.02"]
[WhiteClock "0:01:40"]
[BlackClock "0:01:31"]

1. e4 {[%clk 0:02:55]}  d5 {[%clk 0:02:59]} 2. exd5 {[%clk 0:02:55]}  Qxd5 {[%clk 0:02:58]} 3. Nc3 {[%clk 0:02:55]}  Qa5 {[%clk 0:02:58]} 4. Bc4 {[%clk 0:02:51]}  Nf6 {[%clk 0:02:57]} 5. Nf3 {[%clk 0:02:48]}  Bg4 {[%clk 0:02:56]} 6. h3 {[%clk 0:02:47]}  Bh5 {[%clk 0:02:54]} 7. d4 {[%clk 0:02:37]}  e6 {[%clk 0:02:52]} 8. g4 {[%clk 0:02:37]}  Bg6 {[%clk 0:02:52]} 9. Ne5 {[%clk 0:02:37]}  Bd6 {[%clk 0:02:42]} 10. Qe2 {[%clk 0:02:28]}  O-O {[%clk 0:02:39]} 11. Bd2 {[%clk 0:02:25]}  Qb6 {[%clk 0:02:37]} 12. O-O-O {[%clk 0:02:24]}  Qxd4 {[%clk 0:02:26]} 13. f4 {[%clk 0:02:21]}  Bxe5 {[%clk 0:02:17]} 14. fxe5 {[%clk 0:02:20]}  Nd5 {[%clk 0:02:14]} 15. Bxd5 {[%clk 0:02:11]}  Qxd5 {[%clk 0:02:11]} 16. Nxd5 {[%clk 0:02:10]}  exd5 {[%clk 0:02:11]} 17. h4 {[%clk 0:02:09]}  h6 {[%clk 0:02:09]} 18. h5 {[%clk 0:02:06]}  Be4 {[%clk 0:02:08]} 19. g5 {[%clk 0:02:01]}  hxg5 {[%clk 0:01:59]} 20. Bxg5 {[%clk 0:01:57]}  Nd7 {[%clk 0:01:58]} 21. h6 {[%clk 0:01:46]}  g6 {[%clk 0:01:53]} 22. h7+ {[%clk 0:01:46]}  Kh8 {[%clk 0:01:52]} 23. Qxe4 {[%clk 0:01:41]}  dxe4 {[%clk 0:01:50]} 24. Rxd7 {[%clk 0:01:41]}  f5 {[%clk 0:01:46]} 25. Bf6+ {[%clk 0:01:40]}  Rxf6 {[%clk 0:01:44]} 26. exf6 {[%clk 0:01:41]}  Rf8 {[%clk 0:01:40]} 27. Rg7 {[%clk 0:01:41]}  f4 {[%clk 0:01:38]} 28. Rxg6 {[%clk 0:01:41]}  f3 {[%clk 0:01:36]} 29. f7 {[%clk 0:01:38]}  e3 {[%clk 0:01:35]} 30. Rg8+ {[%clk 0:01:39]}  Rxg8 {[%clk 0:01:31]} 31. fxg8=Q# {[%clk 0:01:40]} 1-0


[Site "https://www.chess.com"]

[Event "Titled Tuesday Blitz May 2 Early 2023"]
[White "Nakamura, Hikaru"]
[Black "Quesada Perez, Yuniesky"]
[WhiteFideId "2016192"]
[BlackFideId "3504409"]
[WhiteElo "2885"]
[BlackElo "2585"]
[Result "1-0"]
[Round "04"]
[TimeControl "180+2"]
[Date "2023.05.02"]
[WhiteClock "0:00:09"]
[BlackClock "0:00:16"]

1. Nf3 {[%clk 0:03:00]}  d5 {[%clk 0:02:59]} 2. e3 {[%clk 0:03:00]}  Nf6 {[%clk 0:02:59]} 3. c4 {[%clk 0:02:56]}  c6 {[%clk 0:02:59]} 4. d4 {[%clk 0:02:55]}  e6 {[%clk 0:02:58]} 5. Bd3 {[%clk 0:02:55]}  Nbd7 {[%clk 0:02:58]} 6. Nbd2 {[%clk 0:02:53]}  Be7 {[%clk 0:02:54]} 7. e4 {[%clk 0:02:52]}  dxe4 {[%clk 0:02:54]} 8. Nxe4 {[%clk 0:02:53]}  Nxe4 {[%clk 0:02:53]} 9. Bxe4 {[%clk 0:02:53]}  Nf6 {[%clk 0:02:53]} 10. Bc2 {[%clk 0:02:53]}  c5 {[%clk 0:02:51]} 11. O-O {[%clk 0:02:44]}  O-O {[%clk 0:02:49]} 12. b3 {[%clk 0:02:41]}  b6 {[%clk 0:02:47]} 13. dxc5 {[%clk 0:02:29]}  Qxd1 {[%clk 0:02:41]} 14. Rxd1 {[%clk 0:02:28]}  Bxc5 {[%clk 0:02:41]} 15. Bb2 {[%clk 0:02:18]}  Bb7 {[%clk 0:02:41]} 16. Ne5 {[%clk 0:02:12]}  Rfd8 {[%clk 0:02:39]} 17. Kf1 {[%clk 0:02:10]}  Kf8 {[%clk 0:02:31]} 18. f3 {[%clk 0:02:06]}  Ke7 {[%clk 0:02:28]} 19. Ke2 {[%clk 0:02:04]}  h6 {[%clk 0:02:26]} 20. Nd3 {[%clk 0:01:46]}  Bd6 {[%clk 0:02:24]} 21. g3 {[%clk 0:01:44]}  g5 {[%clk 0:02:20]} 22. Nf2 {[%clk 0:01:37]}  Bc5 {[%clk 0:02:15]} 23. Bc3 {[%clk 0:01:24]}  Rac8 {[%clk 0:02:09]} 24. Rac1 {[%clk 0:01:13]}  Ba3 {[%clk 0:02:04]} 25. Rxd8 {[%clk 0:01:13]}  Rxd8 {[%clk 0:02:02]} 26. Rf1 {[%clk 0:01:14]}  Bc5 {[%clk 0:01:59]} 27. Nd3 {[%clk 0:01:14]}  Bd6 {[%clk 0:01:57]} 28. Bb2 {[%clk 0:01:10]}  Nd7 {[%clk 0:01:54]} 29. f4 {[%clk 0:01:07]}  g4 {[%clk 0:01:49]} 30. Ke3 {[%clk 0:01:04]}  Nc5 {[%clk 0:01:42]} 31. Ne5 {[%clk 0:00:58]}  f5 {[%clk 0:01:30]} 32. Rd1 {[%clk 0:00:58]}  Ne4 {[%clk 0:01:30]} 33. Bxe4 {[%clk 0:00:38]}  Bxe4 {[%clk 0:01:30]} 34. Nxg4 {[%clk 0:00:39]}  Bc2 {[%clk 0:01:10]} 35. Bf6+ {[%clk 0:00:32]}  Kf7 {[%clk 0:01:04]} 36. Bxd8 {[%clk 0:00:22]}  Bxd1 {[%clk 0:01:04]} 37. Nxh6+ {[%clk 0:00:14]}  Kg6 {[%clk 0:00:55]} 38. Ng8 {[%clk 0:00:14]}  Kf7 {[%clk 0:00:55]} 39. Nf6 {[%clk 0:00:14]}  Bc2 {[%clk 0:00:50]} 40. Nh7 {[%clk 0:00:14]}  Bb1 {[%clk 0:00:47]} 41. Kd2 {[%clk 0:00:14]}  e5 {[%clk 0:00:33]} 42. fxe5 {[%clk 0:00:13]}  Bxe5 {[%clk 0:00:34]} 43. Ng5+ {[%clk 0:00:13]}  Kg6 {[%clk 0:00:33]} 44. Nf3 {[%clk 0:00:14]}  Bd6 {[%clk 0:00:33]} 45. Kc3 {[%clk 0:00:13]}  Be4 {[%clk 0:00:33]} 46. Nh4+ {[%clk 0:00:12]}  Kf7 {[%clk 0:00:32]} 47. Bg5 {[%clk 0:00:12]}  Be5+ {[%clk 0:00:31]} 48. Kb4 {[%clk 0:00:13]}  Bc6 {[%clk 0:00:27]} 49. Nxf5 {[%clk 0:00:12]}  a5+ {[%clk 0:00:20]} 50. Ka3 {[%clk 0:00:12]}  Be4 {[%clk 0:00:16]} 51. Ne3 {[%clk 0:00:12]}  Bd6+ {[%clk 0:00:16]} 52. Kb2 {[%clk 0:00:13]}  Be5+ {[%clk 0:00:16]} 53. Kc1 {[%clk 0:00:13]}  Bd4 {[%clk 0:00:16]} 54. Bf4 {[%clk 0:00:13]}  Kg6 {[%clk 0:00:16]} 55. Nc2 {[%clk 0:00:11]}  Bc5 {[%clk 0:00:16]} 56. Be3 {[%clk 0:00:09]} 1-0


[Site "https://www.chess.com"]

[Event "Titled Tuesday Blitz May 2 Early 2023"]
[White "Asis Gargatagli, Hipolito"]
[Black "Paravyan, David"]
[WhiteFideId "2260735"]
[BlackFideId "4194985"]
[WhiteElo "2557"]
[BlackElo "2563"]
[Result "1/2-1/2"]
[Round "04"]
[TimeControl "180+2"]
[Date "2023.05.02"]
[WhiteClock "0:00:12"]
[BlackClock "0:00:06"]

1. e4 {[%clk 0:03:00]}  e5 {[%clk 0:03:00]} 2. Nf3 {[%clk 0:03:01]}  Nf6 {[%clk 0:03:00]} 3. Nxe5 {[%clk 0:03:02]}  d6 {[%clk 0:03:00]} 4. Nf3 {[%clk 0:03:02]}  Nxe4 {[%clk 0:03:00]} 5. d4 {[%clk 0:03:03]}  d5 {[%clk 0:03:00]} 6. Bd3 {[%clk 0:03:04]}  Be7 {[%clk 0:03:01]} 7. O-O {[%clk 0:03:04]}  Bf5 {[%clk 0:03:01]} 8. Re1 {[%clk 0:02:59]}  O-O {[%clk 0:03:01]} 9. Nbd2 {[%clk 0:02:59]}  Nd6 {[%clk 0:03:02]} 10. Bxf5 {[%clk 0:02:58]}  Nxf5 {[%clk 0:03:02]} 11. Nf1 {[%clk 0:02:58]}  c6 {[%clk 0:02:59]} 12. Qd3 {[%clk 0:02:58]}  Nd6 {[%clk 0:03:00]} 13. Bf4 {[%clk 0:02:57]}  Na6 {[%clk 0:02:59]} 14. h4 {[%clk 0:02:51]}  Nc7 {[%clk 0:02:55]} 15. Ng5 {[%clk 0:02:49]}  g6 {[%clk 0:02:48]} 16. Nh2 {[%clk 0:02:44]}  Qd7 {[%clk 0:02:17]} 17. h5 {[%clk 0:02:38]}  Bxg5 {[%clk 0:02:13]} 18. Bxg5 {[%clk 0:02:38]}  Ne4 {[%clk 0:02:14]} 19. Bh6 {[%clk 0:02:28]}  Rfe8 {[%clk 0:02:13]} 20. f3 {[%clk 0:02:27]}  Nf6 {[%clk 0:02:13]} 21. hxg6 {[%clk 0:02:21]}  hxg6 {[%clk 0:02:12]} 22. Bg5 {[%clk 0:02:21]}  Qd6 {[%clk 0:01:55]} 23. Qd2 {[%clk 0:02:04]}  Nh5 {[%clk 0:00:55]} 24. Ng4 {[%clk 0:01:46]}  Rxe1+ {[%clk 0:00:55]} 25. Rxe1 {[%clk 0:01:46]}  Ne6 {[%clk 0:00:56]} 26. Nf6+ {[%clk 0:01:15]}  Nxf6 {[%clk 0:00:35]} 27. Bxf6 {[%clk 0:01:16]}  Ng7 {[%clk 0:00:28]} 28. Qg5 {[%clk 0:00:42]}  Re8 {[%clk 0:00:20]} 29. Rxe8+ {[%clk 0:00:36]}  Nxe8 {[%clk 0:00:20]} 30. Be5 {[%clk 0:00:37]}  Qf8 {[%clk 0:00:05]} 31. Qd8 {[%clk 0:00:32]}  f6 {[%clk 0:00:05]} 32. Bg3 {[%clk 0:00:25]}  Qf7 {[%clk 0:00:05]} 33. b4 {[%clk 0:00:19]}  a6 {[%clk 0:00:06]} 34. a4 {[%clk 0:00:18]}  Kg7 {[%clk 0:00:06]} 35. a5 {[%clk 0:00:18]}  Kh7 {[%clk 0:00:05]} 36. c3 {[%clk 0:00:18]}  Ng7 {[%clk 0:00:05]} 37. Qb8 {[%clk 0:00:14]}  Ne6 {[%clk 0:00:05]} 38. Bd6 {[%clk 0:00:14]}  Qd7 {[%clk 0:00:04]} 39. Bg3 {[%clk 0:00:12]}  g5 {[%clk 0:00:05]} 40. Kf2 {[%clk 0:00:11]}  Kg7 {[%clk 0:00:05]} 41. Bd6 {[%clk 0:00:11]}  Kh7 {[%clk 0:00:06]} 42. Bg3 {[%clk 0:00:11]}  Kg7 {[%clk 0:00:06]} 43. Bd6 {[%clk 0:00:11]}  Kh7 {[%clk 0:00:06]} 44. Bg3 {[%clk 0:00:12]} 1/2-1/2


[Site "https://www.chess.com"]

[Event "Titled Tuesday Blitz May 2 Early 2023"]
[White "Sethuraman, S.P."]
[Black "Firouzja, Alireza"]
[WhiteFideId "5021596"]
[BlackFideId "12573981"]
[WhiteElo "2543"]
[BlackElo "2904"]
[Result "0-1"]
[Round "04"]
[TimeControl "180+2"]
[Date "2023.05.02"]
[WhiteClock "0:00:02"]
[BlackClock "0:00:09"]

1. e4 {[%clk 0:03:00]}  c5 {[%clk 0:02:59]} 2. Nf3 {[%clk 0:03:00]}  e6 {[%clk 0:02:55]} 3. d4 {[%clk 0:02:59]}  cxd4 {[%clk 0:02:56]} 4. Nxd4 {[%clk 0:03:00]}  Nc6 {[%clk 0:02:53]} 5. Nc3 {[%clk 0:02:59]}  a6 {[%clk 0:02:53]} 6. a3 {[%clk 0:02:55]}  Nge7 {[%clk 0:02:47]} 7. Be3 {[%clk 0:02:47]}  b5 {[%clk 0:02:39]} 8. Be2 {[%clk 0:02:42]}  Bb7 {[%clk 0:02:39]} 9. O-O {[%clk 0:02:40]}  Rc8 {[%clk 0:02:37]} 10. Nxc6 {[%clk 0:02:33]}  Nxc6 {[%clk 0:02:38]} 11. f4 {[%clk 0:02:25]}  Be7 {[%clk 0:02:36]} 12. Bd3 {[%clk 0:02:22]}  O-O {[%clk 0:02:24]} 13. Qh5 {[%clk 0:02:20]}  g6 {[%clk 0:02:10]} 14. Qh3 {[%clk 0:02:09]}  f5 {[%clk 0:02:02]} 15. Rad1 {[%clk 0:02:06]}  Qc7 {[%clk 0:01:47]} 16. exf5 {[%clk 0:01:25]}  gxf5 {[%clk 0:01:44]} 17. Nd5 {[%clk 0:01:13]}  exd5 {[%clk 0:00:56]} 18. Bxf5 {[%clk 0:01:13]}  Rxf5 {[%clk 0:00:55]} 19. Qxf5 {[%clk 0:01:12]}  d4 {[%clk 0:00:55]} 20. Rf3 {[%clk 0:01:00]}  Rf8 {[%clk 0:00:42]} 21. Rg3+ {[%clk 0:00:46]}  Kh8 {[%clk 0:00:41]} 22. Qg4 {[%clk 0:00:19]}  Bf6 {[%clk 0:00:40]} 23. Bf2 {[%clk 0:00:11]}  d6 {[%clk 0:00:31]} 24. Rh3 {[%clk 0:00:07]}  Bc8 {[%clk 0:00:27]} 25. f5 {[%clk 0:00:08]}  Rg8 {[%clk 0:00:17]} 26. Qh5 {[%clk 0:00:08]}  Bb7 {[%clk 0:00:14]} 27. Bg3 {[%clk 0:00:08]}  Ne5 {[%clk 0:00:14]} 28. Qh6 {[%clk 0:00:08]}  Ng4 {[%clk 0:00:11]} 29. Qd2 {[%clk 0:00:07]}  Ne3 {[%clk 0:00:11]} 30. Re1 {[%clk 0:00:07]}  Bxg2 {[%clk 0:00:11]} 31. Rxe3 {[%clk 0:00:06]}  Bxh3 {[%clk 0:00:11]} 32. Re6 {[%clk 0:00:06]}  Qf7 {[%clk 0:00:11]} 33. Rxd6 {[%clk 0:00:05]}  Bxf5 {[%clk 0:00:11]} 34. Qf4 {[%clk 0:00:04]}  Bg7 {[%clk 0:00:11]} 35. Rxd4 {[%clk 0:00:02]}  Bxd4+ {[%clk 0:00:08]} 36. Qxd4+ {[%clk 0:00:03]}  Qg7 {[%clk 0:00:09]} 37. Qe3 {[%clk 0:00:02]}  h6 {[%clk 0:00:08]} 38. Kf2 {[%clk 0:00:01]}  Kh7 {[%clk 0:00:09]} 39. Be5 {[%clk 0:00:02]}  Qf7 {[%clk 0:00:09]} 40. Qf4 {[%clk 0:00:02]}  Bg6 {[%clk 0:00:09]} 0-1


[Site "https://www.chess.com"]

[Event "Titled Tuesday Blitz May 2 Early 2023"]
[White "Yu, Yangyi"]
[Black "Livaic, Leon"]
[WhiteFideId "8603820"]
[BlackFideId "14531534"]
[WhiteElo "2783"]
[BlackElo "2509"]
[Result "0-1"]
[Round "04"]
[TimeControl "180+2"]
[Date "2023.05.02"]
[WhiteClock "0:00:02"]
[BlackClock "0:00:09"]

1. d4 {[%clk 0:03:00]}  Nf6 {[%clk 0:02:59]} 2. c4 {[%clk 0:03:01]}  e6 {[%clk 0:02:59]} 3. Nc3 {[%clk 0:03:02]}  d5 {[%clk 0:03:00]} 4. Nf3 {[%clk 0:03:02]}  a6 {[%clk 0:02:57]} 5. c5 {[%clk 0:02:56]}  b6 {[%clk 0:02:57]} 6. cxb6 {[%clk 0:02:57]}  cxb6 {[%clk 0:02:57]} 7. Bf4 {[%clk 0:02:56]}  Bd6 {[%clk 0:02:58]} 8. Bxd6 {[%clk 0:02:56]}  Qxd6 {[%clk 0:02:58]} 9. e3 {[%clk 0:02:57]}  Bb7 {[%clk 0:02:57]} 10. Bd3 {[%clk 0:02:57]}  O-O {[%clk 0:02:56]} 11. O-O {[%clk 0:02:58]}  Nc6 {[%clk 0:02:56]} 12. Rc1 {[%clk 0:02:57]}  Rfc8 {[%clk 0:02:56]} 13. h3 {[%clk 0:02:51]}  h6 {[%clk 0:02:51]} 14. a3 {[%clk 0:02:49]}  Rc7 {[%clk 0:02:46]} 15. Rc2 {[%clk 0:02:46]}  b5 {[%clk 0:02:43]} 16. Ne2 {[%clk 0:02:29]}  Rac8 {[%clk 0:02:39]} 17. Qb1 {[%clk 0:02:23]}  b4 {[%clk 0:02:33]} 18. Qa1 {[%clk 0:02:09]}  Nd7 {[%clk 0:02:05]} 19. Rfc1 {[%clk 0:02:08]}  Nb6 {[%clk 0:02:00]} 20. Nd2 {[%clk 0:01:58]}  a5 {[%clk 0:01:33]} 21. Nb3 {[%clk 0:01:58]}  a4 {[%clk 0:01:13]} 22. Nc5 {[%clk 0:01:56]}  b3 {[%clk 0:01:13]} 23. Rc3 {[%clk 0:01:56]}  Na5 {[%clk 0:01:04]} 24. Bb5 {[%clk 0:01:47]}  Bc6 {[%clk 0:00:51]} 25. Ba6 {[%clk 0:01:46]}  Ra8 {[%clk 0:00:48]} 26. Qb1 {[%clk 0:01:12]}  Nac4 {[%clk 0:00:47]} 27. Bxc4 {[%clk 0:01:09]}  Nxc4 {[%clk 0:00:42]} 28. Nf4 {[%clk 0:01:02]}  e5 {[%clk 0:00:34]} 29. Nfd3 {[%clk 0:01:01]}  e4 {[%clk 0:00:26]} 30. Nb4 {[%clk 0:00:43]}  Bb5 {[%clk 0:00:27]} 31. Rd1 {[%clk 0:00:39]}  f5 {[%clk 0:00:27]} 32. Qc1 {[%clk 0:00:38]}  Rf8 {[%clk 0:00:26]} 33. Re1 {[%clk 0:00:31]}  Rcf7 {[%clk 0:00:24]} 34. g3 {[%clk 0:00:25]}  g5 {[%clk 0:00:24]} 35. Rxc4 {[%clk 0:00:14]}  Bxc4 {[%clk 0:00:23]} 36. Qc3 {[%clk 0:00:13]}  Kh7 {[%clk 0:00:16]} 37. Rc1 {[%clk 0:00:11]}  f4 {[%clk 0:00:16]} 38. exf4 {[%clk 0:00:09]}  gxf4 {[%clk 0:00:16]} 39. g4 {[%clk 0:00:09]}  Qe7 {[%clk 0:00:12]} 40. Re1 {[%clk 0:00:08]}  f3 {[%clk 0:00:12]} 41. Nxe4 {[%clk 0:00:07]}  dxe4 {[%clk 0:00:10]} 42. Qxc4 {[%clk 0:00:07]}  Qh4 {[%clk 0:00:10]} 43. Qf1 {[%clk 0:00:05]}  Rg7 {[%clk 0:00:10]} 44. Rxe4 {[%clk 0:00:06]}  h5 {[%clk 0:00:10]} 45. Qd3 {[%clk 0:00:02]}  Kh8 {[%clk 0:00:09]} 46. Qe3 {[%clk 0:00:01]}  Qxh3 {[%clk 0:00:08]} 47. Qh6+ {[%clk 0:00:01]}  Kg8 {[%clk 0:00:08]} 48. Qe6+ {[%clk 0:00:02]}  Kh7 {[%clk 0:00:09]} 0-1


[Site "https://www.chess.com"]

[Event "Titled Tuesday Blitz May 2 Early 2023"]
[White "Andreikin, Dmitry"]
[Black "Kravtsiv, Martyn"]
[WhiteFideId "4158814"]
[BlackFideId "14113147"]
[WhiteElo "2736"]
[BlackElo "2695"]
[Result "1-0"]
[Round "04"]
[TimeControl "180+2"]
[Date "2023.05.02"]
[WhiteClock "0:00:02"]
[BlackClock "0:00:03"]

1. Nf3 {[%clk 0:03:00]}  Nf6 {[%clk 0:02:58]} 2. c4 {[%clk 0:03:01]}  e6 {[%clk 0:02:58]} 3. g3 {[%clk 0:03:00]}  d5 {[%clk 0:02:58]} 4. Bg2 {[%clk 0:02:59]}  Be7 {[%clk 0:02:59]} 5. O-O {[%clk 0:02:59]}  O-O {[%clk 0:02:59]} 6. b3 {[%clk 0:02:59]}  d4 {[%clk 0:02:58]} 7. Bb2 {[%clk 0:02:56]}  c5 {[%clk 0:02:59]} 8. b4 {[%clk 0:02:56]}  Nc6 {[%clk 0:02:51]} 9. bxc5 {[%clk 0:02:53]}  e5 {[%clk 0:02:44]} 10. d3 {[%clk 0:02:53]}  Nd7 {[%clk 0:02:41]} 11. Ba3 {[%clk 0:02:50]}  Qa5 {[%clk 0:02:36]} 12. Nfd2 {[%clk 0:02:48]}  Qc7 {[%clk 0:02:25]} 13. Ne4 {[%clk 0:02:44]}  Nd8 {[%clk 0:02:19]} 14. Nbd2 {[%clk 0:02:33]}  f5 {[%clk 0:02:13]} 15. Nd6 {[%clk 0:02:30]}  Nxc5 {[%clk 0:02:14]} 16. Nb5 {[%clk 0:02:06]}  Qd7 {[%clk 0:02:13]} 17. Bd5+ {[%clk 0:02:00]}  Kh8 {[%clk 0:02:12]} 18. Nf3 {[%clk 0:02:01]}  Nc6 {[%clk 0:01:47]} 19. Bxc6 {[%clk 0:01:46]}  bxc6 {[%clk 0:01:46]} 20. Nxe5 {[%clk 0:01:46]}  Qe6 {[%clk 0:01:46]} 21. Nxd4 {[%clk 0:01:47]}  Qxe5 {[%clk 0:01:20]} 22. Nxc6 {[%clk 0:01:47]}  Qe6 {[%clk 0:01:17]} 23. Nxe7 {[%clk 0:01:46]}  Qxe7 {[%clk 0:01:18]} 24. d4 {[%clk 0:01:46]}  Re8 {[%clk 0:01:07]} 25. Bxc5 {[%clk 0:01:39]}  Qf7 {[%clk 0:01:03]} 26. d5 {[%clk 0:01:15]}  f4 {[%clk 0:01:03]} 27. Bd6 {[%clk 0:01:13]}  Bh3 {[%clk 0:00:54]} 28. Bxf4 {[%clk 0:01:11]}  Re4 {[%clk 0:00:49]} 29. Qd3 {[%clk 0:01:00]}  Rae8 {[%clk 0:00:45]} 30. Rfe1 {[%clk 0:00:57]}  Bf5 {[%clk 0:00:34]} 31. Qc3 {[%clk 0:00:45]}  h5 {[%clk 0:00:27]} 32. d6 {[%clk 0:00:33]}  Rxc4 {[%clk 0:00:24]} 33. Qb3 {[%clk 0:00:33]}  Be6 {[%clk 0:00:23]} 34. Qd3 {[%clk 0:00:25]}  Bf5 {[%clk 0:00:22]} 35. Qb3 {[%clk 0:00:18]}  Be6 {[%clk 0:00:21]} 36. Qf3 {[%clk 0:00:15]}  Bg4 {[%clk 0:00:18]} 37. Qg2 {[%clk 0:00:11]}  Rc2 {[%clk 0:00:14]} 38. Rac1 {[%clk 0:00:10]}  Rexe2 {[%clk 0:00:12]} 39. Rxe2 {[%clk 0:00:09]}  Rxe2 {[%clk 0:00:12]} 40. h3 {[%clk 0:00:07]}  Bd7 {[%clk 0:00:11]} 41. Qf3 {[%clk 0:00:07]}  Qe8 {[%clk 0:00:11]} 42. Rc7 {[%clk 0:00:06]}  Re1+ {[%clk 0:00:06]} 43. Kh2 {[%clk 0:00:06]}  h4 {[%clk 0:00:06]} 44. gxh4 {[%clk 0:00:05]}  Kg8 {[%clk 0:00:05]} 45. Qd5+ {[%clk 0:00:03]}  Be6 {[%clk 0:00:05]} 46. d7 {[%clk 0:00:03]}  Qd8 {[%clk 0:00:03]} 47. Rc8 {[%clk 0:00:02]} 1-0


[Site "https://www.chess.com"]